bitfinex-derivatives/quotes_SOLF0:USTF0_20260208
["timestamp","ask_amount","ask_price","bid_price","bid_amount"]
[1770531848594,10.69419947,87.414,87.338,7.31852291]
[1770531848595,7.03673784,87.391,87.338,7.31852291]
[1770531848795,6.9220113,87.389,87.344,7.31852291]
[1770531851089,6.9220113,87.389,87.346,17.63032291]
[1770531851289,6.9220113,87.389,87.347,7.31852291]
[1770531860702,6.9220113,87.389,87.354,7.00892222]
[1770531863601,6.9220113,87.389,87.359,7.00892222]
[1770531866003,7.0214667,87.416,87.359,7.00892222]
[1770531866203,7.0214667,87.414,87.359,7.00892222]
[1770531866404,7.0214667,87.412,87.359,7.00892222]
[1770531866708,7.02424526,87.41,87.359,7.00892222]
[1770531866906,7.08084215,87.408,87.359,7.00892222]
[1770531867107,7.08084215,87.406,87.359,7.00892222]
[1770531867806,7.08360984,87.404,87.35,7.00892222]
[1770531868006,7.08360984,87.402,87.35,7.00892222]
[1770531870307,7.09026533,87.4,87.35,7.00892222]
[1770531870507,7.09026533,87.398,87.35,7.00892222]
[1770531871306,6.86924669,87.396,87.35,7.00892222]
[1770531872196,6.86924669,87.396,87.348,10.3116]
[1770531872599,8.64918827,87.395,87.348,10.3116]
[1770531872797,6.88143947,87.393,87.348,10.3116]
[1770531873006,6.88143947,87.391,87.348,10.3116]
[1770531873208,6.88143947,87.389,87.348,10.3116]
[1770531875599,6.88143947,87.389,87.34,7.00892222]
[1770531876507,6.98675941,87.387,87.326,7.287695]
[1770531876707,6.96785326,87.385,87.326,7.287695]
[1770531876905,6.96785326,87.381,87.315,7.287695]
[1770531877210,6.96785326,87.379,87.315,7.287695]
[1770531877400,6.96785326,87.377,87.315,7.287695]
[1770531877707,6.97027272,87.375,87.315,7.287695]
[1770531877909,6.97026797,87.373,87.315,7.287695]
[1770531878109,6.97026797,87.371,87.315,7.287695]
[1770531880718,6.7826253,87.369,87.315,7.287695]
[1770531881722,6.78490121,87.367,87.315,7.287695]
[1770531883223,6.78490121,87.367,87.317,7.287695]
[1770531884722,6.78490121,87.367,87.319,7.287695]
[1770531886624,6.78490121,87.367,87.32,10.3149]
[1770531886922,6.78490121,87.367,87.321,7.287695]
[1770531887724,6.78490121,87.367,87.323,7.287695]
[1770531889821,6.78490121,87.367,87.325,7.287695]
[1770531890027,7.05094552,87.377,87.325,7.287695]
[1770531891719,7.05094552,87.377,87.337,7.287695]
[1770531892225,10.3053,87.402,87.337,7.287695]
[1770531892226,7.01927895,87.389,87.337,7.287695]
[1770531892617,7.01927895,87.389,87.339,7.287695]
[1770531893832,7.01927895,87.389,87.345,7.287695]
[1770531895927,7.01927895,87.389,87.347,7.287695]
[1770531897723,7.01927895,87.389,87.349,7.287695]
[1770531898938,7.10274679,87.411,87.351,7.287695]
[1770531899135,7.10274679,87.409,87.351,7.287695]
[1770531899331,7.10274679,87.407,87.351,7.287695]
[1770531899633,7.10274679,87.405,87.351,7.287695]
[1770531899835,7.10274679,87.405,87.354,7.287695]
[1770531901438,7.14689635,87.403,87.343,7.287695]
[1770531901636,7.14872996,87.401,87.343,7.287695]
[1770531901840,7.14874186,87.399,87.343,7.287695]
[1770531902039,7.14874186,87.397,87.343,7.287695]
[1770531902341,7.14874186,87.395,87.343,7.287695]
[1770531902541,7.14874186,87.393,87.343,7.287695]
[1770531902842,14.21090565,87.424,87.325,309.50622562]
[1770531902843,7.12131809,87.405,87.356,7.287695]
[1770531903945,7.12131809,87.405,87.359,7.287695]
[1770531923849,7.12131809,87.405,87.346,10.3118]
[1770531924155,7.12131809,87.405,87.347,7.5679918]
[1770531924353,6.95830599,87.403,87.347,7.5679918]
[1770531924649,6.95830599,87.401,87.347,7.5679918]
[1770531924850,6.95830599,87.399,87.347,7.5679918]
[1770531925154,6.95830599,87.397,87.347,7.5679918]
[1770531925347,6.95830599,87.395,87.347,7.5679918]
[1770531925652,6.95830599,87.393,87.347,7.5679918]
[1770531927249,6.95830599,87.391,87.347,7.5679918]
[1770531929346,6.95830599,87.389,87.347,7.5679918]
[1770531932259,6.95830599,87.387,87.347,7.5679918]
[1770531934358,6.95830599,87.385,87.347,7.5679918]
[1770531944770,7.0999896,87.395,87.347,7.5679918]
[1770531944965,7.0999896,87.393,87.347,7.5679918]
[1770531945168,15.85213552,87.392,87.347,7.5679918]
[1770531945366,15.85213552,87.391,87.347,7.5679918]
[1770531945570,8.75214592,87.39,87.347,7.5679918]
[1770531945872,7.0999896,87.391,87.347,7.5679918]
[1770531946169,8.75227092,87.39,87.347,7.5679918]
[1770531946371,7.0999896,87.391,87.347,7.5679918]
[1770531946562,7.10105389,87.389,87.347,7.5679918]
[1770531946766,7.10572439,87.387,87.347,7.5679918]
[1770531946966,7.10572439,87.385,87.347,7.5679918]
[1770531949171,7.07530483,87.383,87.326,7.253583]
[1770531949373,7.07530483,87.381,87.326,7.253583]
[1770531949570,7.07530483,87.379,87.326,7.253583]
[1770531949874,7.07631913,87.377,87.326,7.253583]
[1770531950075,7.07631913,87.375,87.326,7.253583]
[1770531950276,7.07631913,87.373,87.326,7.253583]
[1770531950475,7.07631913,87.371,87.326,7.253583]
[1770531950677,7.07788533,87.369,87.326,7.253583]
[1770531950872,7.07788533,87.367,87.326,7.253583]
[1770531952976,7.11002707,87.365,87.326,7.253583]
[1770531953175,8.75716887,87.366,87.326,7.253583]
[1770531953176,7.11002707,87.363,87.326,7.253583]
[1770531955668,7.15020532,87.361,87.325,309.50622562]
[1770531955875,7.15020532,87.359,87.325,309.50622562]
[1770531956174,7.15020532,87.357,87.325,309.50622562]
[1770531957871,7.15020532,87.369,87.326,7.253583]
[1770531958075,254.10478976,87.505,87.326,7.253583]
[1770531958076,7.15020532,87.377,87.326,7.253583]
[1770531958275,7.15020532,87.375,87.326,7.253583]
[1770531959077,7.14833866,87.387,87.328,7.253583]
[1770531959374,15.89151974,87.386,87.328,7.253583]
[1770531959577,7.14924607,87.384,87.328,7.253583]
[1770531963279,8.74582754,87.383,87.328,7.253583]
[1770531963478,7.14924607,87.384,87.328,7.253583]
[1770531963687,7.15020532,87.382,87.328,7.253583]
[1770531967587,7.14003614,87.38,87.328,7.253583]
[1770531967888,7.14085308,87.378,87.328,7.253583]
[1770531968283,7.14085308,87.376,87.328,7.253583]
[1770531970586,7.15168292,87.374,87.328,7.253583]
[1770531970786,7.15168292,87.372,87.328,7.253583]
[1770531973187,7.15168292,87.372,87.328,7.253583]
[1770531974507,8.75186824,87.371,87.328,7.253583]
[1770531974683,7.19776522,87.37,87.328,7.253583]
[1770531975493,7.18813305,87.39,87.33,7.02969905]
[1770531975685,7.1888713,87.388,87.33,7.02969905]
[1770531975887,8.75119218,87.387,87.33,7.02969905]
[1770531976193,8.75119218,87.386,87.33,7.02969905]
[1770531976390,8.75119218,87.385,87.33,7.02969905]
[1770531976594,8.75119218,87.384,87.33,7.02969905]
[1770531976794,8.75119218,87.383,87.337,7.02969905]
[1770531976993,8.75119218,87.382,87.337,7.02969905]
[1770531977194,7.1888713,87.388,87.337,7.02969905]
[1770531977394,15.88605842,87.387,87.337,7.02969905]
[1770531977594,8.70712702,87.386,87.337,7.02969905]
[1770531977794,8.70712702,87.385,87.337,7.02969905]
[1770531978100,8.70712702,87.384,87.337,7.02969905]
[1770531978296,7.1789314,87.387,87.342,7.02969905]
[1770531978695,7.23208433,87.402,87.342,7.02969905]
[1770531978897,7.23208433,87.398,87.342,7.02969905]
[1770531979196,7.23208433,87.396,87.342,7.02969905]
[1770531979395,7.23208433,87.394,87.342,7.02969905]
[1770531979598,7.23278695,87.392,87.342,7.02969905]
[1770531979902,7.23279113,87.39,87.342,7.02969905]
[1770531982703,7.25613301,87.41,87.347,7.02969905]
[1770531982895,7.25613301,87.408,87.347,7.02969905]
[1770531983201,7.25613301,87.406,87.347,7.02969905]
[1770531983500,7.25613301,87.404,87.349,7.02969905]
[1770531983709,7.25680883,87.402,87.349,7.02969905]
[1770531984101,7.25680883,87.402,87.358,7.02969905]
[1770531984512,8.70369854,87.401,87.358,7.02969905]
[1770531984809,7.25680883,87.402,87.358,7.02969905]
[1770531985009,8.70369899,87.401,87.358,7.02969905]
[1770531985205,7.25680883,87.402,87.358,7.02969905]
[1770531985406,8.70278312,87.401,87.358,7.02969905]
[1770531985707,7.25680883,87.402,87.358,7.02969905]
[1770531985910,8.70278312,87.401,87.358,7.02969905]
[1770531986209,7.25680883,87.402,87.358,7.02969905]
[1770531986806,7.25680883,87.402,87.347,7.02969905]
[1770531987110,7.345376,87.4,87.347,7.02969905]
[1770531987305,7.345376,87.398,87.347,7.02969905]
[1770531990804,7.345376,87.398,87.35,7.02969905]
[1770531993405,7.345376,87.398,87.351,7.02969905]
[1770532005226,6.94097441,87.396,87.339,7.15112805]
[1770532005523,6.94097441,87.394,87.339,7.15112805]
[1770532005723,6.94097441,87.392,87.339,7.15112805]
[1770532005919,6.94097441,87.39,87.339,7.15112805]
[1770532006820,6.94097441,87.39,87.325,309.50622562]
[1770532006821,6.94097441,87.39,87.342,7.15112805]
[1770532015924,6.94097441,87.399,87.344,7.15112805]
[1770532016132,6.94097441,87.398,87.344,7.15112805]
[1770532016835,6.94097441,87.398,87.351,7.15112805]
[1770532020330,6.94097441,87.398,87.356,7.15112805]
[1770532021834,6.94097441,87.398,87.36,7.15112805]
[1770532024641,6.94097441,87.396,87.36,7.15112805]
[1770532024836,15.6810316,87.395,87.36,7.15112805]
[1770532025037,15.6810316,87.394,87.36,7.15112805]
[1770532025243,6.94097441,87.394,87.36,7.15112805]
[1770532026537,6.94097441,87.394,87.349,7.3061159]
[1770532027049,7.03518656,87.392,87.349,7.3061159]
[1770532027233,7.03518656,87.39,87.349,7.3061159]
[1770532027638,7.03557746,87.388,87.302,7.3061159]
[1770532027842,7.03557746,87.384,87.302,7.3061159]
[1770532028037,7.03557746,87.382,87.302,7.3061159]
[1770532028345,7.03557746,87.38,87.302,7.3061159]
[1770532028542,7.03557746,87.378,87.302,7.3061159]
[1770532028745,7.06040156,87.376,87.319,7.3061159]
[1770532028945,7.06040156,87.374,87.319,7.3061159]
[1770532029138,7.06040156,87.372,87.319,7.3061159]
[1770532029338,7.06040156,87.37,87.319,7.3061159]
[1770532029536,7.06040156,87.368,87.319,7.3061159]
[1770532029737,7.06078415,87.366,87.322,7.3061159]
[1770532032249,6.8905628,87.364,87.322,7.3061159]
[1770532032559,6.8905628,87.362,87.322,7.3061159]
[1770532034956,6.99612762,87.385,87.325,6.91462774]
[1770532035156,6.99612762,87.383,87.325,6.91462774]
[1770532035447,6.99612762,87.381,87.328,6.91462774]
[1770532035651,6.99648307,87.379,87.328,6.91462774]
[1770532036954,6.99648307,87.379,87.332,6.91462774]
[1770532042059,7.00593898,87.402,87.337,6.91462774]
[1770532042258,7.00593898,87.4,87.337,6.91462774]
[1770532042453,7.00593898,87.398,87.337,6.91462774]
[1770532043867,7.00593898,87.398,87.349,6.91462774]
[1770532044760,7.00593898,87.398,87.351,6.91462774]
[1770532044961,7.06665541,87.396,87.351,6.91462774]
[1770532050271,7.06665541,87.396,87.353,17.22562774]
[1770532050767,7.06665541,87.396,87.354,6.91462774]
[1770532055970,7.06665541,87.396,87.344,7.52761404]
[1770532056173,7.01538211,87.394,87.344,7.52761404]
[1770532057268,7.01538211,87.394,87.346,7.52761404]
[1770532059364,7.01538211,87.394,87.347,10.3117]
[1770532059671,7.01538211,87.394,87.348,7.52761404]
[1770532062282,7.01538211,87.394,87.352,7.52761404]
[1770532063081,7.01538211,87.394,87.359,7.52761404]
[1770532067679,7.01538211,87.394,87.348,7.52761404]
[1770532069581,20.9861923,87.414,87.348,7.52761404]
[1770532069582,7.0273612,87.392,87.348,7.52761404]
[1770532072880,7.0273612,87.392,87.358,10.3104]
[1770532073185,7.0273612,87.392,87.359,7.52761404]
[1770532076484,7.0273612,87.392,87.352,7.52761404]
[1770532076691,7.05004141,87.39,87.352,7.52761404]
[1770532076990,7.05004141,87.388,87.34,7.52761404]
[1770532077190,7.05004141,87.386,87.34,7.52761404]
[1770532077490,7.05004141,87.386,87.301,34.36]
[1770532077491,7.05004141,87.384,87.342,7.52761404]
[1770532078387,7.05025578,87.382,87.342,7.52761404]
[1770532078787,7.05025578,87.382,87.343,10.3122]
[1770532079591,7.05025578,87.382,87.346,7.52761404]
[1770532080789,7.05025578,87.382,87.348,7.52761404]
[1770532083694,7.05025578,87.382,87.337,7.52761404]
[1770532083891,7.07000552,87.38,87.337,7.52761404]
[1770532084085,7.07000552,87.378,87.337,7.52761404]
[1770532084288,7.07000552,87.376,87.337,7.52761404]
[1770532090488,6.92673282,87.392,87.337,7.52761404]
[1770532090690,6.92673282,87.39,87.337,7.52761404]
[1770532090986,6.92673282,87.388,87.337,7.52761404]
[1770532091186,6.92673282,87.386,87.337,7.52761404]
[1770532091391,10.3063,87.393,87.337,7.52761404]
[1770532091392,6.92673282,87.384,87.337,7.52761404]
[1770532091691,8.73608642,87.383,87.337,7.52761404]
[1770532091992,8.73608642,87.382,87.337,7.52761404]
[1770532092293,8.73608642,87.381,87.337,7.52761404]
[1770532092594,6.92673282,87.383,87.337,7.52761404]
[1770532092795,10.6823923,87.401,87.337,7.52761404]
[1770532092796,15.66198588,87.382,87.337,7.52761404]
[1770532092995,15.7118798,87.381,87.337,7.52761404]
[1770532093190,6.97662674,87.381,87.337,7.52761404]
[1770532094688,6.97662674,87.381,87.339,7.18433979]
[1770532095398,8.73512565,87.38,87.339,7.18433979]
[1770532095598,6.97662674,87.381,87.339,7.18433979]
[1770532095798,8.73495903,87.38,87.339,7.18433979]
[1770532095998,6.97662674,87.381,87.339,7.18433979]
[1770532096200,8.73495903,87.38,87.341,7.18433979]
[1770532096492,6.97662674,87.381,87.341,7.18433979]
[1770532096691,8.75789765,87.38,87.341,7.18433979]
[1770532096894,8.75789765,87.379,87.341,7.18433979]
[1770532097093,6.97662674,87.381,87.341,7.18433979]
[1770532098304,15.73484356,87.38,87.341,7.18433979]
[1770532098501,8.75821682,87.379,87.341,7.18433979]
[1770532098700,6.97662674,87.38,87.341,7.18433979]
[1770532099000,8.75839581,87.379,87.341,7.18433979]
[1770532099202,6.97662674,87.38,87.341,7.18433979]
[1770532108906,6.97662674,87.378,87.341,7.18433979]
[1770532109107,6.97662674,87.376,87.341,7.18433979]
[1770532113519,8.76248576,87.375,87.341,7.18433979]
[1770532113718,6.949127,87.373,87.33,10.3137]
[1770532113917,6.949127,87.373,87.334,7.18433979]
[1770532114118,6.94912478,87.371,87.302,7.18433979]
[1770532114312,6.94912478,87.369,87.302,7.18433979]
[1770532114516,6.94912478,87.367,87.302,7.18433979]
[1770532114718,6.94926261,87.365,87.302,7.18433979]
[1770532114914,6.90662572,87.363,87.302,7.18433979]
[1770532115823,6.90662572,87.363,87.313,7.46199862]
[1770532116821,6.90662572,87.363,87.315,7.46199862]
[1770532117721,6.89483032,87.361,87.318,7.46199862]
[1770532117926,6.89483032,87.359,87.318,7.46199862]
[1770532119628,6.89483032,87.359,87.3,308.64609594]
[1770532119629,6.89483032,87.359,87.32,7.46199862]
[1770532120430,6.91072313,87.357,87.319,10.315]
[1770532120629,6.91072313,87.355,87.319,10.315]
[1770532121031,6.92629693,87.353,87.319,10.315]
[1770532121235,6.92629693,87.351,87.311,7.46199862]
[1770532121528,6.92629693,87.349,87.311,7.46199862]
[1770532121831,6.92629693,87.349,87.303,7.46199862]
[1770532122025,6.92642041,87.347,87.3,308.64609594]
[1770532122224,10.6823923,87.344,87.283,7.46199862]
[1770532122421,6.92642041,87.339,87.283,7.46199862]
[1770532122630,6.92642041,87.337,87.283,7.46199862]
[1770532122822,6.89298714,87.335,87.283,7.46199862]
[1770532123026,6.89298714,87.333,87.283,7.46199862]
[1770532123227,6.89298714,87.331,87.283,7.46199862]
[1770532123427,6.89298714,87.329,87.283,7.46199862]
[1770532123631,6.89298714,87.327,87.283,7.46199862]
[1770532123832,6.89310753,87.325,87.283,7.46199862]
[1770532127130,6.81087689,87.359,87.287,7.46199862]
[1770532127436,6.81087689,87.357,87.287,7.46199862]
[1770532127633,6.81099415,87.355,87.287,7.46199862]
[1770532127834,6.81099121,87.353,87.287,7.46199862]
[1770532128131,6.81099121,87.351,87.287,7.46199862]
[1770532128837,6.81099121,87.351,87.293,7.46199862]
[1770532133337,10.3101,87.361,87.293,7.46199862]
[1770532133338,6.83836997,87.349,87.293,7.46199862]
[1770532137042,6.87938561,87.347,87.293,7.46199862]
[1770532138744,6.82092059,87.345,87.293,7.46199862]
[1770532141549,6.85042765,87.343,87.293,7.46199862]
[1770532142843,6.82721033,87.337,87.293,7.46199862]
[1770532144345,10.3131,87.336,87.293,7.46199862]
[1770532144649,6.82730544,87.335,87.293,7.46199862]
[1770532145045,34.42362465,87.36,87.284,7.46199862]
[1770532145046,6.77166677,87.332,87.284,7.46199862]
[1770532145347,6.77166677,87.33,87.274,7.46199862]
[1770532146739,6.75903517,87.328,87.274,7.46199862]
[1770532147953,6.75912453,87.321,87.265,7.14164739]
[1770532148250,6.75912453,87.319,87.265,7.14164739]
[1770532148438,6.75912453,87.317,87.265,7.14164739]
[1770532149952,6.8018379,87.347,87.266,7.14164739]
[1770532150252,6.8018379,87.345,87.266,7.14164739]
[1770532150448,6.8018379,87.342,87.282,7.14164739]
[1770532151852,6.8018379,87.342,87.284,7.14164739]
[1770532154048,10.3109,87.354,87.251,34.36]
[1770532154049,6.99841986,87.367,87.287,7.59473226]
[1770532154254,6.99841986,87.365,87.287,7.59473226]
[1770532154455,6.99841986,87.363,87.287,7.59473226]
[1770532154656,6.99841986,87.36,87.287,7.59473226]
[1770532154851,6.89115637,87.358,87.287,7.59473226]
[1770532155057,6.89115637,87.356,87.287,7.59473226]
[1770532155256,6.89115637,87.35,87.287,7.59473226]
[1770532155456,6.89115637,87.348,87.287,7.59473226]
[1770532155658,6.89115637,87.346,87.287,7.59473226]
[1770532155856,6.89123762,87.344,87.287,7.59473226]
[1770532156057,6.89123762,87.342,87.287,7.59473226]
[1770532160360,6.86626935,87.34,87.287,7.59473226]
[1770532162363,6.92248597,87.338,87.287,7.59473226]
[1770532164263,8.6269169,87.337,87.287,7.59473226]
[1770532164465,6.90091746,87.336,87.287,7.59473226]
[1770532168472,6.90091746,87.336,87.293,7.59473226]
[1770532170369,6.90091746,87.336,87.294,10.3179]
[1770532170674,6.92397317,87.362,87.295,7.59473226]
[1770532170868,15.56837466,87.361,87.295,7.59473226]
[1770532171067,8.63173033,87.36,87.295,7.59473226]
[1770532171272,8.63173033,87.359,87.295,7.59473226]
[1770532171569,8.63173033,87.358,87.295,7.59473226]
[1770532171869,6.93671206,87.371,87.311,7.59473226]
[1770532172072,6.93671206,87.393,87.311,7.59473226]
[1770532172273,6.93671206,87.391,87.335,7.59473226]
[1770532172470,6.93671206,87.389,87.335,7.59473226]
[1770532173065,7.08495216,87.387,87.335,7.59473226]
[1770532173266,7.08495216,87.385,87.335,7.59473226]
[1770532173480,7.08495216,87.383,87.335,7.59473226]
[1770532174066,7.085019,87.381,87.32,7.59473226]
[1770532174267,7.085019,87.379,87.32,7.59473226]
[1770532174471,7.085019,87.377,87.32,7.59473226]
[1770532174678,7.085019,87.375,87.32,7.59473226]
[1770532174878,7.24846437,87.373,87.32,7.59473226]
[1770532179380,7.24846437,87.373,87.322,7.34561658]
[1770532186077,6.92134745,87.369,87.322,7.34561658]
[1770532186989,6.92134745,87.366,87.3,7.34561658]
[1770532187787,6.92134745,87.363,87.3,7.34561658]
[1770532188792,6.79516099,87.358,87.3,7.34561658]
[1770532191491,6.79516099,87.358,87.304,7.34561658]
[1770532192693,6.79516099,87.358,87.305,10.3167]
[1770532192994,6.79516099,87.358,87.306,7.34561658]
[1770532193690,6.79516099,87.358,87.308,10.3163]
[1770532193892,6.79516099,87.358,87.309,7.34561658]
[1770532202892,6.89328378,87.356,87.298,7.34561658]
[1770532203093,6.89328378,87.354,87.298,7.34561658]
[1770532203289,6.89328378,87.352,87.298,7.34561658]
[1770532203500,6.89328378,87.35,87.298,7.34561658]
[1770532203705,6.89328378,87.348,87.298,7.34561658]
[1770532204196,6.89332991,87.342,87.274,7.34561658]
[1770532204400,6.89332991,87.34,87.274,7.34561658]
[1770532204602,6.89332991,87.338,87.274,7.34561658]
[1770532204897,6.89240629,87.336,87.274,7.34561658]
[1770532205101,6.89240629,87.332,87.274,7.34561658]
[1770532205300,6.89240629,87.33,87.274,7.34561658]
[1770532206804,28.54881758,87.397,87.274,7.34561658]
[1770532206805,6.89084258,87.328,87.274,7.34561658]
[1770532206999,6.89084258,87.326,87.274,7.34561658]
[1770532207199,6.89084258,87.324,87.251,7.54489711]
[1770532207394,6.89084258,87.322,87.251,7.54489711]
[1770532207702,6.89084258,87.32,87.251,7.54489711]
[1770532207902,6.89088611,87.318,87.251,7.54489711]
[1770532208901,6.89088611,87.318,87.26,7.54489711]
[1770532209099,7.07700951,87.349,87.26,7.54489711]
[1770532209295,160.3223,87.393,87.26,7.54489711]
[1770532209296,7.07700951,87.347,87.26,7.54489711]
[1770532209499,7.07700951,87.345,87.26,7.54489711]
[1770532209706,7.07705294,87.343,87.26,7.54489711]
[1770532210002,7.07705258,87.341,87.274,7.54489711]
[1770532210702,7.07705258,87.341,87.295,10.3179]
[1770532210900,7.07705258,87.341,87.296,7.54489711]
[1770532211607,7.1321376,87.352,87.296,7.54489711]
[1770532213310,7.1321376,87.352,87.299,7.26739799]
[1770532217311,7.1321376,87.352,87.301,7.26739799]
[1770532228824,7.08627832,87.35,87.301,7.26739799]
[1770532229127,7.08627832,87.347,87.301,7.26739799]
[1770532229328,7.08627832,87.345,87.301,7.26739799]
[1770532229627,7.08631239,87.343,87.301,7.26739799]
[1770532229829,7.08631213,87.341,87.301,7.26739799]
[1770532231331,7.08592434,87.337,87.278,7.26739799]
[1770532232731,10.3132,87.335,87.278,7.26739799]
[1770532232932,7.05088359,87.334,87.278,7.26739799]
[1770532234526,7.05091579,87.332,87.278,7.26739799]
[1770532236441,6.98990193,87.345,87.278,7.26739799]
[1770532237031,6.98990193,87.345,87.29,7.56557332]
[1770532238741,6.98990193,87.345,87.295,7.56557332]
[1770532252445,7.01665144,87.343,87.295,7.56557332]
[1770532253346,7.02154705,87.341,87.295,7.56557332]
[1770532254646,7.02159751,87.339,87.295,7.56557332]
[1770532260356,7.06899589,87.349,87.295,7.56557332]
[1770532260761,8.76626372,87.348,87.295,7.56557332]
[1770532260952,7.06899589,87.349,87.295,7.56557332]
[1770532261360,8.76626372,87.348,87.295,7.56557332]
[1770532261562,8.76715185,87.347,87.295,7.56557332]
[1770532261858,7.06899589,87.349,87.295,7.56557332]
[1770532262061,8.766865,87.348,87.295,7.56557332]
[1770532262259,7.06899589,87.349,87.295,7.56557332]
[1770532262459,8.76750248,87.348,87.295,7.56557332]
[1770532262668,7.06899589,87.349,87.295,7.56557332]
[1770532262969,8.76750248,87.348,87.295,7.56557332]
[1770532263160,7.06899589,87.349,87.295,7.56557332]
[1770532263465,8.76750248,87.348,87.295,7.56557332]
[1770532263768,8.76750248,87.347,87.295,7.56557332]
[1770532263961,7.06899589,87.349,87.295,7.56557332]
[1770532264269,7.0670698,87.347,87.295,7.56557332]
[1770532264462,7.0670698,87.345,87.252,7.56557332]
[1770532264662,7.06709228,87.342,87.252,7.56557332]
[1770532264871,7.01982336,87.34,87.252,7.56557332]
[1770532265069,7.01982336,87.338,87.252,7.56557332]
[1770532265269,7.01982336,87.336,87.252,7.56557332]
[1770532265568,7.01982336,87.332,87.26,7.56557332]
[1770532265768,7.00999092,87.33,87.26,7.56557332]
[1770532265967,7.00999092,87.328,87.263,6.95758201]
[1770532267866,7.00999092,87.328,87.268,6.95758201]
[1770532269875,7.00999092,87.328,87.273,6.95758201]
[1770532277381,6.95809445,87.326,87.273,6.95758201]
[1770532277668,6.95809445,87.324,87.273,6.95758201]
[1770532277863,6.95811304,87.322,87.273,6.95758201]
[1770532278068,6.95811304,87.32,87.273,6.95758201]
[1770532278267,6.95811304,87.318,87.273,6.95758201]
[1770532282471,6.97256695,87.315,87.258,7.29916537]
[1770532282772,6.97256695,87.313,87.258,7.29916537]
[1770532282977,6.98583454,87.311,87.258,7.29916537]
[1770532283279,6.98583454,87.309,87.258,7.29916537]
[1770532283475,6.98583454,87.307,87.258,7.29916537]
[1770532290369,6.98583454,87.307,87.261,7.29916537]
[1770532294573,6.98583454,87.307,87.232,34.38]
[1770532294574,6.98583454,87.307,87.263,7.29916537]
[1770532297786,6.98583454,87.307,87.267,7.61457891]
[1770532299489,6.98583454,87.307,87.269,7.61457891]
[1770532300789,6.98583454,87.307,87.27,10.3207]
[1770532301993,6.98583454,87.307,87.27,17.93527891]
[1770532302189,6.8492904,87.337,87.271,7.61457891]
[1770532302383,6.8492904,87.335,87.271,7.61457891]
[1770532302590,6.8492904,87.333,87.273,7.61457891]
[1770532302797,6.84538211,87.331,87.273,7.61457891]
[1770532302996,6.84538211,87.329,87.273,7.61457891]
[1770532303197,6.84538211,87.327,87.273,7.61457891]
[1770532303401,6.84538211,87.325,87.273,7.61457891]
[1770532303595,6.84538211,87.323,87.273,7.61457891]
[1770532303898,10.3129,87.338,87.273,7.61457891]
[1770532303899,6.84539562,87.321,87.273,7.61457891]
[1770532304598,6.84540928,87.319,87.273,7.61457891]
[1770532305096,6.84540928,87.319,87.276,10.32]
[1770532305399,6.84540928,87.319,87.277,7.61457891]
[1770532308905,15.66619827,87.318,87.277,7.61457891]
[1770532309099,6.87194857,87.318,87.277,7.61457891]
[1770532309300,8.79658794,87.317,87.277,7.61457891]
[1770532309501,6.87194857,87.318,87.277,7.61457891]
[1770532309804,8.79658794,87.317,87.277,7.61457891]
[1770532309991,6.87194857,87.318,87.277,7.61457891]
[1770532310306,8.79658794,87.317,87.277,7.61457891]
[1770532310505,6.87194857,87.318,87.277,7.61457891]
[1770532310700,8.7967851,87.317,87.277,7.61457891]
[1770532311004,6.87194857,87.318,87.277,7.61457891]
[1770532311204,6.86460775,87.316,87.277,7.61457891]
[1770532317293,6.84578229,87.314,87.277,7.61457891]
[1770532321108,6.84578229,87.314,87.265,7.61457891]
[1770532321311,6.82863761,87.312,87.265,7.61457891]
[1770532321526,6.82863761,87.31,87.265,7.61457891]
[1770532321816,6.82864883,87.308,87.265,7.61457891]
[1770532322017,6.82864857,87.306,87.265,7.61457891]
[1770532322318,6.82864857,87.304,87.265,7.61457891]
[1770532322618,15.63371917,87.303,87.265,7.61457891]
[1770532322826,6.76576009,87.301,87.265,7.61457891]
[1770532323115,6.76576009,87.299,87.265,7.61457891]
[1770532326817,6.76576009,87.299,87.239,12.31778698]
[1770532327024,6.83071047,87.297,87.24,7.27293488]
[1770532327224,6.83071047,87.295,87.24,7.27293488]
[1770532327417,6.83071047,87.293,87.24,7.27293488]
[1770532327618,6.83071047,87.291,87.24,7.27293488]
[1770532327816,6.83072058,87.289,87.244,7.27293488]
[1770532328016,6.83072058,87.288,87.244,7.27293488]
[1770532328217,6.83072058,87.297,87.244,7.27293488]
[1770532328525,6.83072058,87.295,87.244,7.27293488]
[1770532328724,6.83073083,87.293,87.244,7.27293488]
[1770532328919,10.68377523,87.311,87.231,290.7967287]
[1770532328920,6.80629665,87.291,87.235,7.27293488]
[1770532329131,6.80629665,87.289,87.235,7.27293488]
[1770532329321,6.80629665,87.287,87.235,7.27293488]
[1770532329517,6.80629665,87.285,87.235,7.27293488]
[1770532329713,6.80630678,87.283,87.235,17.59783488]
[1770532329918,6.80630651,87.281,87.236,7.27293488]
[1770532330118,15.6081173,87.28,87.236,7.27293488]
[1770532330321,6.80630651,87.278,87.236,7.27293488]
[1770532331222,8.79427493,87.277,87.236,7.27293488]